[Event "EYCC Open-U10 2019"]
[Site "Bratislava"]
[Date "2019.08.06"]
[Round "5.5"]
[White "kiladze, Luka"]
[Black "Kononenko, Vladimir"]
[Result "1/2-1/2"]
[ECO "A46"]
[WhiteElo "1683"]
[BlackElo "1667"]
[Annotator "NA"]
[PlyCount "47"]
[EventDate "2019.08.02"]
[EventType "swiss"]
[EventCountry "SVK"]
[SourceTitle "playchess.com"]
[Source "ChessBase"]
[SourceQuality "1"]
[TimeControl "40/5400+30:1800+30"]

1. d4 {[%emt 0:00:00]} Nf6 {[%emt 0:00:00]} 2. Nf3 {[%emt 0:00:00]} e6 {[%emt 0:00:00]} 3. Bf4 {[%emt 0:00:38]} c5 {[%emt 0:00:33]} 4. e3 {[%emt 0:01:10]} d5 {[%emt 0:00:14]} 5. c3 {[%emt 0:00:35]} Nc6 {[%emt 0:01:05]} 6. Bd3 {[%emt 0:00:36]} Bd6 {[%emt 0:01:02]} 7. Bg3 {[%emt 0:12:58]} O-O {[%emt 0:03:06]} 8. Nbd2 {[%emt 0:00:58]} b6 {[%emt 0:01:53]} 9. O-O {[%emt 0:07:01]} Bb7 {[%emt 0:03:21]} 10. Ne5 {[%emt 0:05:32]} Qc7 {[%emt 0:05:25]} 11. f4 {[%emt 0:01:45]} Nd7 {[%emt 0:09:05]} 12. Ndf3 {[%emt 0:03:28]} f6 {[%emt 0:04:31]} 13. Nxc6 {[%emt 0:06:28]} Bxc6 {[%emt 0:04:16]} 14. Qc2 {[%emt 0:04:22]} f5 {[%emt 0:07:40]} 15. Ne5 {[%emt 0:00:53]} Nxe5 {[%emt 0:00:57]} 16. fxe5 {[%emt 0:00:42]} Be7 {[%emt 0:00:09]} 17. Kh1 {[%emt 0:02:02]} Kh8 {[%emt 0:03:08]} 18. Rg1 {[%emt 0:02:11]} g5 {[%emt 0:06:38]} 19. Raf1 {[%emt 0:01:22]} h5 {[%emt 0:04:41]} 20. Be2 {[%emt 0:08:35]} g4 {[%emt 0:05:54]} 21. Qd2 {[%emt 0:03:46]} Kg7 {[%emt 0:05:06]} 22. Bf4 {[%emt 0:01:59]} Rh8 {[%emt 0:02:19]} 23. Rc1 {[%emt 0:04:10]} Qb7 {[%emt 0:05:22]} 24. b4 {[%emt 0:04:00]} 1/2-1/2

[Event "EYCC Open-U10 2019"]
[Site "Bratislava"]
[Date "2019.08.06"]
[Round "5.6"]
[White "Warchol, Kamil"]
[Black "Ljepic, Andrej"]
[Result "1-0"]
[ECO "B30"]
[WhiteElo "1573"]
[BlackElo "1824"]
[Annotator "NA"]
[PlyCount "71"]
[EventDate "2019.08.02"]
[EventType "swiss"]
[EventCountry "SVK"]
[SourceTitle "playchess.com"]
[Source "ChessBase"]
[SourceQuality "1"]
[TimeControl "40/5400+30:1800+30"]

1. e4 {[%emt 0:00:00]} c5 {[%emt 0:00:00]} 2. Nf3 {[%emt 0:02:43]} Nc6 {[%emt 0:00:00]} 3. Bb5 {[%emt 0:00:33]} Na5 {[%emt 0:00:50]} 4. Be2 {[%emt 0:06:24]} d6 {[%emt 0:07:04]} 5. d4 {[%emt 0:02:49]} cxd4 {[%emt 0:01:20]} 6. Nxd4 {[%emt 0:00:59]} Nf6 {[%emt 0:02:15]} 7. Nc3 {[%emt 0:01:26]} e6 {[%emt 0:09:26]} 8. O-O {[%emt 0:05:58]} Be7 {[%emt 0:03:22]} 9. Nb3 {[%emt 0:11:02]} Nc6 {[%emt 0:04:38]} 10. Be3 {[%emt 0:03:01]} O-O {[%emt 0:04:54]} 11. f4 {[%emt 0:02:30]} a6 {[%emt 0:04:36]} 12. a4 {[%emt 0:03:03]} b6 {[%emt 0:09:59]} 13. Bf3 {[%emt 0:15:31]} Qc7 {[%emt 0:08:27]} 14. Qe1 {[%emt 0:03:51]} Bb7 {[%emt 0:07:12]} 15. Rd1 {[%emt 0:04:22]} Nd7 {[%emt 0:07:33]} 16. Qf2 {[%emt 0:08:43]} Rab8 {[%emt 0:07:56]} 17. g4 {[%emt 0:02:18]} Ba8 {[%emt 0:04:23]} 18. g5 {[%emt 0:03:00]} Na5 {[%emt 0:03:28]} 19. Nd4 {[%emt 0:04:35]} Nc4 {[%emt 0:04:03]} 20. Bc1 {[%emt 0:00:44]} Rfd8 {[%emt 0:02:36]} 21. h4 {[%emt 0:02:57]} Bf8 {[%emt 0:01:46]} 22. f5 {[%emt 0:03:26]} e5 {[%emt 0:01:12]} 23. Nb3 {[%emt 0:01:48]} Nc5 {[%emt 0:00:54]} 24. Kh1 {[%emt 0:01:52]} Bc6 {[%emt 0:01:20]} 25. Qe2 {[%emt 0:02:53]} b5 {[%emt 0:00:53]} 26. axb5 {[%emt 0:01:05]} axb5 {[%emt 0:00:09]} 27. Nd5 {[%emt 0:01:10]} Bxd5 {[%emt 0:00:42]} 28. Rxd5 {[%emt 0:00:27]} Nb6 {[%emt 0:00:38]} 29. Nxc5 {[%emt 0:02:13]} Nxd5 {[%emt 0:01:36]} 30. Na6 {[%emt 0:00:05]} Qb6 {[%emt 0:00:10]} 31. Nxb8 {[%emt 0:00:14]} Nc7 {[%emt 0:00:08]} 32. h5 {[%emt 0:00:57]} Qxb8 {[%emt 0:00:17]} 33. Qg2 {[%emt 0:01:03]} Qb7 {[%emt 0:01:25]} 34. g6 {[%emt 0:00:53]} fxg6 {[%emt 0:00:47]} 35. fxg6 {[%emt 0:01:03]} h6 {[%emt 0:00:41]} 36. Bg4 {[%emt 0:00:54]} 1-0

[Event "EYCC Open-U10 2019"]
[Site "Bratislava"]
[Date "2019.08.06"]
[Round "5.7"]
[White "Toktomushev, Teimur"]
[Black "Hvozdz, Aliaksandr"]
[Result "1/2-1/2"]
[ECO "D14"]
[WhiteElo "1977"]
[BlackElo "1699"]
[Annotator "NA"]
[PlyCount "67"]
[EventDate "2019.08.02"]
[EventType "swiss"]
[EventCountry "SVK"]
[SourceTitle "playchess.com"]
[Source "ChessBase"]
[SourceQuality "1"]
[TimeControl "40/5400+30:1800+30"]

1. d4 {[%emt 0:00:00]} Nf6 {[%emt 0:00:00]} 2. Nf3 {[%emt 0:00:00]} c5 {[%emt 0:00:00]} 3. c3 {[%emt 0:00:00]} cxd4 {[%emt 0:01:13]} 4. cxd4 {[%emt 0:00:04]} d5 {[%emt 0:00:44]} 5. Nc3 {[%emt 0:00:06]} Nc6 {[%emt 0:00:45]} 6. Bf4 {[%emt 0:11:27]} Bf5 {[%emt 0:03:32]} 7. Qb3 {[%emt 0:02:51]} a6 {[%emt 0:13:49]} 8. Qxb7 {[%emt 0:03:48]} Na5 {[%emt 0:01:36]} 9. Qc7 {[%emt 0:00:06]} Qxc7 {[%emt 0:00:59]} 10. Bxc7 {[%emt 0:00:06]} Nc4 {[%emt 0:00:54]} 11. Nh4 {[%emt 0:14:18]} Bd7 {[%emt 0:09:46]} 12. e4 {[%emt 0:10:11]} Nxb2 {[%emt 0:09:11]} 13. e5 {[%emt 0:09:45]} Ne4 {[%emt 0:06:20]} 14. Nxe4 {[%emt 0:03:16]} dxe4 {[%emt 0:00:29]} 15. d5 {[%emt 0:00:47]} g5 16. e6 {[%emt 0:01:58]} fxe6 {[%emt 0:04:41]} 17. Be5 {[%emt 0:04:23]} Rg8 {[%emt 0:00:33]} 18. dxe6 {[%emt 0:01:26]} Bxe6 {[%emt 0:00:25]} 19. Bxb2 {[%emt 0:00:04]} gxh4 {[%emt 0:00:21]} 20. g3 {[%emt 0:02:10]} h3 {[%emt 0:08:53]} 21. Be2 {[%emt 0:00:37]} Rg5 {[%emt 0:09:56]} 22. O-O {[%emt 0:02:31]} Rc5 {[%emt 0:05:49]} 23. Rfc1 {[%emt 0:06:10]} Rxc1+ {[%emt 0:01:31]} 24. Rxc1 {[%emt 0:01:11]} Bxa2 {[%emt 0:02:18]} 25. Ra1 {[%emt 0:00:04]} Bd5 {[%emt 0:02:15]} 26. Bxa6 {[%emt 0:02:37]} Bh6 {[%emt 0:01:59]} 27. Bb5+ {[%emt 0:00:17]} Kf7 {[%emt 0:00:37]} 28. Rxa8 {[%emt 0:00:28]} Bxa8 {[%emt 0:00:10]} 29. Bf1 {[%emt 0:03:03]} e3 {[%emt 0:00:51]} 30. f4 {[%emt 0:01:02]} Bf3 {[%emt 0:02:52]} 31. Bxh3 {[%emt 0:03:20]} Bg7 {[%emt 0:00:30]} 32. Bxg7 {[%emt 0:01:29]} Kxg7 {[%emt 0:00:06]} 33. Bf5 {[%emt 0:01:35]} h5 {[%emt 0:01:39]} 34. Kf1 {[%emt 0:07:51]} 1/2-1/2

[Event "EYCC Open-U10 2019"]
[Site "Bratislava"]
[Date "2019.08.06"]
[Round "5.8"]
[White "Zverev, Lev"]
[Black "Agasarov, Benik"]
[Result "1-0"]
[ECO "B33"]
[WhiteElo "1849"]
[BlackElo "1697"]
[Annotator "NA"]
[PlyCount "85"]
[EventDate "2019.08.02"]
[EventType "swiss"]
[EventCountry "SVK"]
[SourceTitle "playchess.com"]
[Source "ChessBase"]
[SourceQuality "1"]
[TimeControl "40/5400+30:1800+30"]

1. e4 {[%emt 0:00:00]} c5 {[%emt 0:00:00]} 2. Nf3 {[%emt 0:00:00]} d6 {[%emt 0:00:00]} 3. d4 {[%emt 0:00:06]} cxd4 {[%emt 0:00:00]} 4. Nxd4 {[%emt 0:00:08]} Nf6 {[%emt 0:00:00]} 5. Nc3 {[%emt 0:00:08]} Nc6 {[%emt 0:00:11]} 6. Bg5 {[%emt 0:00:46]} e5 {[%emt 0:00:09]} 7. Ndb5 {[%emt 0:00:25]} a6 {[%emt 0:00:07]} 8. Na3 {[%emt 0:00:09]} b5 {[%emt 0:00:08]} 9. Nd5 {[%emt 0:00:12]} Be7 {[%emt 0:00:07]} 10. Bxf6 {[%emt 0:00:07]} Bxf6 {[%emt 0:00:05]} 11. c3 {[%emt 0:00:09]} Be6 {[%emt 0:00:19]} 12. Nc2 {[%emt 0:00:18]} Be7 {[%emt 0:06:50]} 13. a4 {[%emt 0:00:37]} Rb8 {[%emt 0:10:22]} 14. axb5 {[%emt 0:01:08]} axb5 {[%emt 0:00:06]} 15. b4 {[%emt 0:01:04]} O-O {[%emt 0:03:16]} 16. Bd3 {[%emt 0:01:03]} Qd7 {[%emt 0:12:53]} 17. O-O {[%emt 0:00:44]} f5 {[%emt 0:02:45]} 18. f3 {[%emt 0:15:47]} Bd8 {[%emt 0:01:31]} 19. Be2 {[%emt 0:05:24]} Ne7 {[%emt 0:04:00]} 20. Nce3 {[%emt 0:00:52]} Bb6 {[%emt 0:00:33]} 21. Nxb6 {[%emt 0:00:12]} Rxb6 {[%emt 0:00:07]} 22. Nd5 {[%emt 0:00:18]} Bxd5 {[%emt 0:00:06]} 23. exd5 {[%emt 0:00:06]} Rc8 {[%emt 0:00:06]} 24. Qb3 {[%emt 0:00:32]} Qb7 {[%emt 0:00:47]} 25. Rfd1 {[%emt 0:00:29]} Ra6 {[%emt 0:00:53]} 26. Rac1 {[%emt 0:01:04]} Rb6 {[%emt 0:17:10]} 27. Kf1 {[%emt 0:04:03]} Kf8 {[%emt 0:01:06]} 28. Qb1 {[%emt 0:02:17]} g6 {[%emt 0:00:38]} 29. Qd3 {[%emt 0:00:26]} Ra8 {[%emt 0:05:11]} 30. f4 {[%emt 0:04:20]} e4 {[%emt 0:06:16]} 31. Qd4 {[%emt 0:00:30]} Kf7 {[%emt 0:00:25]} 32. g4 {[%emt 0:00:12]} Rf8 {[%emt 0:01:34]} 33. g5 {[%emt 0:00:36]} Ke8 {[%emt 0:04:14]} 34. h4 {[%emt 0:02:00]} Kd7 {[%emt 0:02:03]} 35. Kf2 {[%emt 0:01:49]} Ra6 {[%emt 0:05:59]} 36. h5 {[%emt 0:03:12]} gxh5 {[%emt 0:02:18]} 37. Rh1 {[%emt 0:00:51]} Ra2 {[%emt 0:00:52]} 38. Rxh5 {[%emt 0:00:37]} Qxd5 {[%emt 0:01:59]} 39. Rxh7 {[%emt 0:00:52]} Qe6 {[%emt 0:01:03]} 40. Kf1 {[%emt 0:00:00]} Rb8 {[%emt 0:00:00]} 41. Rd1 {[%emt 0:02:25]} Kc6 {[%emt 0:04:06]} 42. c4 {[%emt 0:00:57]} e3 {[%emt 0:01:44]} 43. Rh6 {[%emt 0:00:41] Kd5} 1-0

[Event "EYCC Open-U10 2019"]
[Site "Bratislava"]
[Date "2019.08.06"]
[Round "5.9"]
[White "Deladerriere, Apollo"]
[Black "Zienkiewicz, Jan"]
[Result "1/2-1/2"]
[ECO "B23"]
[WhiteElo "1696"]
[BlackElo "1804"]
[Annotator "NA"]
[PlyCount "159"]
[EventDate "2019.08.02"]
[EventType "swiss"]
[EventCountry "SVK"]
[SourceTitle "playchess.com"]
[Source "ChessBase"]
[SourceQuality "1"]
[TimeControl "40/5400+30:1800+30"]

1. e4 c5 2. Nc3 a6 3. f4 d6 4. g3 Nc6 5. Bg2 g6 6. d3 Bg7 7. Nh3 e6 8. O-O Nge7 9. Be3 O-O 10. Qd2 Nd4 11. Rf2 d5 12. Raf1 b5 13. g4 b4 14. Ne2 f5 15. gxf5 exf5 16. e5 Nxe2+ 17. Rxe2 Qb6 18. Qe1 Bb7 19. Bf2 d4 20. Bh4 Bxg2 21. Rxg2 Nd5 22. Bf2 Rae8 23. Qd2 h6 24. Re1 Kh7 25. Kh1 Re6 26. Ng1 g5 27. Nh3 g4 28. Ng1 a5 29. Ne2 Qc6 30. Kg1 a4 31. Rb1 Rb8 32. Ng3 Ne7 33. Nh5 Ng6 34. Kf1 Qd5 35. b3 a3 36. Rg1 Rf8 37. Re1 Qf3 38. Rg2 Qh3 39. Nxg7 Kxg7 40. Bg3 h5 41. Ree2 h4 42. Be1 Ne7 43. Qc1 Qf3+ 44. Ref2 Qc6 45. Bd2 Rg6 46. Qd1 Rh8 47. Ke2 Nd5 48. Qg1 Kf7 49. Rf1 Nc7 50. Rff2 Ke7 51. Rf1 Kd8 52. Qf2 Kc8 53. Rfg1 Rhh6 54. Ke1 Kb8 55. Ke2 Ka7 56. Ke1 Nd5 57. Ke2 Nc7 58. Ke1 Ne6 59. h3 g3 60. Qf1 Nf8 61. Ke2 Nd7 62. Qf3 Kb6 63. Qxc6+ Kxc6 64. Kf3 Nb6 65. Re1 Re6 66. Rge2 Rhg6 67. Kg2 Nd5 68. Kf3 Kd7 69. Kg2 Nc7 70. Kf3 Re8 71. Kg2 Ke6 72. Kf3 Nd5 73. Kg2 Reg8 74. Rg1 R8g7 75. Kf3 Rd7 76. Kg2 Nc3 77. Bxc3 dxc3 78. Rf1 Rd4 79. Rf3 Rd7 80. Re1 1/2-1/2

[Event "EYCC Open-U10 2019"]
[Site "Bratislava"]
[Date "2019.08.06"]
[Round "5.10"]
[White "Averin, Nikolay"]
[Black "Torosyan, Bagrat"]
[Result "1-0"]
[ECO "B80"]
[WhiteElo "1840"]
[BlackElo "1586"]
[Annotator "NA"]
[PlyCount "122"]
[EventDate "2019.08.02"]
[EventType "swiss"]
[EventCountry "SVK"]
[SourceTitle "playchess.com"]
[Source "ChessBase"]
[SourceQuality "1"]
[TimeControl "40/5400+30:1800+30"]

1. e4 {[%emt 0:00:00]} c5 {[%emt 0:00:00]} 2. Nf3 {[%emt 0:00:00]} e6 {[%emt 0:00:00]} 3. d4 {[%emt 0:00:00]} cxd4 {[%emt 0:00:00]} 4. Nxd4 {[%emt 0:00:00]} Nf6 {[%emt 0:00:00]} 5. Nc3 {[%emt 0:00:00]} d6 {[%emt 0:00:00]} 6. Be3 {[%emt 0:00:28]} a6 {[%emt 0:00:00]} 7. Qf3 {[%emt 0:00:25]} Be7 {[%emt 0:00:16]} 8. O-O-O {[%emt 0:00:26]} Qc7 {[%emt 0:00:18]} 9. Qg3 {[%emt 0:00:13]} O-O {[%emt 0:01:16]} 10. Bh6 {[%emt 0:15:29]} Nh5 {[%emt 0:00:22]} 11. Qg4 {[%emt 0:03:13]} Qc5 {[%emt 0:03:54]} 12. Be3 {[%emt 0:26:39]} Nf6 {[%emt 0:00:48]} 13. Qf3 {[%emt 0:00:27]} Qc7 {[%emt 0:00:15]} 14. g4 {[%emt 0:01:25]} Nc6 {[%emt 0:02:09]} 15. g5 {[%emt 0:01:36]} Nd7 {[%emt 0:01:51]} 16. h4 {[%emt 0:00:46]} Nde5 {[%emt 0:07:07]} 17. Qg3 {[%emt 0:01:57]} b5 18. f4 {[%emt 0:00:57]} Nc4 {[%emt 0:05:57]} 19. Ndxb5 {[%emt 0:22:44]} axb5 {[%emt 0:01:19]} 20. Nxb5 {[%emt 0:00:30]} Qa5 {[%emt 0:00:31]} 21. Bxc4 {[%emt 0:00:11]} d5 {[%emt 0:04:52]} 22. exd5 {[%emt 0:03:38]} exd5 {[%emt 0:00:07]} 23. Rxd5 {[%emt 0:00:14]} Nb4 {[%emt 0:00:16]} 24. Re5 {[%emt 0:02:05]} Nxa2+ {[%emt 0:01:05]} 25. Kd1 {[%emt 0:05:17]} Bb7 26. Rh2 {[%emt 0:01:05]} Rfd8+ {[%emt 0:15:54]} 27. Rd2 {[%emt 0:00:53]} Rxd2+ {[%emt 0:07:01]} 28. Bxd2 {[%emt 0:00:18]} Qd8 {[%emt 0:00:32]} 29. Qe3 {[%emt 0:01:18]} Bf8 {[%emt 0:00:44]} 30. c3 {[%emt 0:00:21]} Qd7 {[%emt 0:01:22]} 31. Kc2 {[%emt 0:02:06]} Qg4 {[%emt 0:00:33]} 32. Na3 {[%emt 0:03:07]} Bxa3 {[%emt 0:03:08]} 33. bxa3 Bc6 {[%emt 0:01:49]} 34. Bxa2 {[%emt 0:01:49]} Ba4+ {[%emt 0:01:02]} 35. Kd3 {[%emt 0:02:47]} Rd8+ {[%emt 0:01:30]} 36. Rd5 {[%emt 0:01:22]} Qf5+ {[%emt 0:00:31]} 37. Kd4 {[%emt 0:00:06]} Rxd5+ {[%emt 0:03:17]} 38. Bxd5 {[%emt 0:00:05]} Qd7 {[%emt 0:00:47]} 39. c4 {[%emt 0:00:00]} g6 {[%emt 0:00:00]} 40. Bb4 {[%emt 0:00:00]} Bc2 {[%emt 0:00:00]} 41. Qe7 {[%emt 0:02:45]} Qxe7 {[%emt 0:03:06]} 42. Bxe7 {[%emt 0:00:02]} h5 {[%emt 0:00:35]} 43. gxh6 {[%emt 0:00:08]} Kh7 {[%emt 0:00:07]} 44. Bg5 {[%emt 0:00:11]} f6 {[%emt 0:00:08]} 45. Bxf6 {[%emt 0:00:02]} Kxh6 {[%emt 0:00:11]} 46. c5 {[%emt 0:00:07]} Bf5 {[%emt 0:02:11]} 47. c6 {[%emt 0:00:13]} Kh5 {[%emt 0:00:23]} 48. Bf3+ {[%emt 0:00:05]} Kh6 {[%emt 0:00:06]} 49. c7 {[%emt 0:00:06]} Bc8 {[%emt 0:00:11]} 50. a4 {[%emt 0:00:01]} Kh7 {[%emt 0:00:16]} 51. a5 {[%emt 0:00:03]} Kg8 {[%emt 0:00:07]} 52. Be2 {[%emt 0:00:15]} Kf7 {[%emt 0:00:10]} 53. Ke5 {[%emt 0:00:06]} Ke8 {[%emt 0:00:29]} 54. Kd6 {[%emt 0:00:01]} Kf7 {[%emt 0:00:12]} 55. Bd4 {[%emt 0:00:14]} Ke8 {[%emt 0:00:27]} 56. a6 {[%emt 0:00:03]} g5 {[%emt 0:00:12]} 57. fxg5 {[%emt 0:00:07]} Kf7 {[%emt 0:00:25]} 58. h5 {[%emt 0:00:08]} Kg8 {[%emt 0:00:09]} 59. h6 {[%emt 0:00:13]} Kh7 {[%emt 0:00:24]} 60. Bd3+ Kg8 61. h7+ Kf8 1-0

[Event "EYCC Open-U10 2019"]
[Site "Bratislava"]
[Date "2019.08.06"]
[Round "5.12"]
[White "Ermitsch, Magnus"]
[Black "Rudnev, Andrei"]
[Result "1-0"]
[ECO "B11"]
[WhiteElo "1750"]
[BlackElo "1607"]
[Annotator "NA"]
[PlyCount "53"]
[EventDate "2019.08.02"]
[EventType "swiss"]
[EventCountry "SVK"]
[SourceTitle "playchess.com"]
[Source "ChessBase"]
[SourceQuality "1"]
[TimeControl "40/5400+30:1800+30"]

1. e4 {[%emt 0:00:00]} c6 {[%emt 0:00:00]} 2. Nc3 {[%emt 0:00:52]} d5 {[%emt 0:00:18]} 3. Nf3 {[%emt 0:00:59]} Bg4 {[%emt 0:00:23]} 4. h3 {[%emt 0:01:24]} Bh5 {[%emt 0:02:54]} 5. exd5 {[%emt 0:01:36]} cxd5 {[%emt 0:00:28]} 6. Bb5+ {[%emt 0:01:13]} Nc6 {[%emt 0:03:27]} 7. g4 {[%emt 0:02:33]} Bg6 {[%emt 0:00:57]} 8. Ne5 {[%emt 0:01:50]} Rc8 {[%emt 0:17:46]} 9. d4 {[%emt 0:04:17]} e6 {[%emt 0:05:52]} 10. Qe2 {[%emt 0:03:14]} Be7 {[%emt 0:09:13]} 11. h4 {[%emt 0:03:59]} Bxh4 {[%emt 0:14:34]} 12. Bf4 {[%emt 0:02:05]} Be4 {[%emt 0:10:19]} 13. Nxe4 {[%emt 0:16:09]} dxe4 {[%emt 0:00:23]} 14. O-O-O {[%emt 0:00:52]} Be7 {[%emt 0:07:49]} 15. f3 {[%emt 0:11:46]} exf3 {[%emt 0:07:12]} 16. Qxf3 {[%emt 0:03:54]} Qd5 {[%emt 0:00:32]} 17. Qd3 {[%emt 0:16:22]} Nf6 {[%emt 0:06:13]} 18. Bxc6+ {[%emt 0:05:56]} bxc6 {[%emt 0:00:25]} 19. Qa6 {[%emt 0:00:07]} O-O {[%emt 0:05:34]} 20. g5 {[%emt 0:07:34]} Qe4 {[%emt 0:00:51]} 21. gxf6 {[%emt 0:01:07]} Qxf4+ {[%emt 0:00:11]} 22. Kb1 {[%emt 0:00:08]} gxf6 {[%emt 0:04:54]} 23. Rdg1+ {[%emt 0:01:54]} Kh8 {[%emt 0:00:08]} 24. Nxf7+ {[%emt 0:00:09]} Rxf7 {[%emt 0:00:15]} 25. Qxc8+ {[%emt 0:00:08]} Rf8 {[%emt 0:01:12]} 26. Qxe6 {[%emt 0:00:37]} Ba3 {[%emt 0:00:34]} 27. Qd7 {[%emt 0:00:46]} 1-0

[Event "EYCC Open-U10 2019"]
[Site "Bratislava"]
[Date "2019.08.06"]
[Round "5.13"]
[White "Golovchenko, Bogdan"]
[Black "Gusev, Mikhail"]
[Result "1-0"]
[ECO "C02"]
[WhiteElo "1723"]
[BlackElo "1575"]
[Annotator "NA"]
[PlyCount "67"]
[EventDate "2019.08.02"]
[EventType "swiss"]
[EventCountry "SVK"]
[SourceTitle "playchess.com"]
[Source "ChessBase"]
[SourceQuality "1"]
[TimeControl "40/5400+30:1800+30"]

1. e4 {[%emt 0:00:00]} e6 {[%emt 0:00:00]} 2. d4 {[%emt 0:00:00]} d5 {[%emt 0:00:00]} 3. e5 {[%emt 0:00:00]} c5 {[%emt 0:00:00]} 4. c3 {[%emt 0:00:00]} Nc6 {[%emt 0:00:03]} 5. Nf3 {[%emt 0:00:00]} Nge7 {[%emt 0:00:20]} 6. Bd3 {[%emt 0:00:07]} cxd4 {[%emt 0:00:20]} 7. cxd4 {[%emt 0:00:06]} Nf5 {[%emt 0:00:21]} 8. Bxf5 {[%emt 0:00:08]} exf5 {[%emt 0:00:27]} 9. a3 {[%emt 0:00:09]} Be7 {[%emt 0:01:19]} 10. b4 {[%emt 0:00:18]} a6 {[%emt 0:00:58]} 11. O-O {[%emt 0:00:24]} Be6 {[%emt 0:00:34]} 12. Bb2 {[%emt 0:00:25]} g5 {[%emt 0:01:28]} 13. Nbd2 {[%emt 0:05:44]} Qb6 {[%emt 0:06:26]} 14. Nb3 {[%emt 0:00:41]} a5 {[%emt 0:00:50]} 15. bxa5 {[%emt 0:02:20]} Nxa5 {[%emt 0:00:21]} 16. Nxa5 {[%emt 0:00:42]} Rxa5 {[%emt 0:01:17]} 17. Bc3 {[%emt 0:00:48]} Rb5 {[%emt 0:08:15]} 18. a4 {[%emt 0:04:32]} Rb3 {[%emt 0:00:31]} 19. Rb1 {[%emt 0:00:40]} Rxb1 {[%emt 0:01:16]} 20. Qxb1 {[%emt 0:00:07]} Qa6 {[%emt 0:01:11]} 21. Bb4 {[%emt 0:02:36]} g4 {[%emt 0:05:17]} 22. Nd2 {[%emt 0:03:20]} Qxa4 {[%emt 0:03:22]} 23. Bxe7 {[%emt 0:00:23]} Kxe7 {[%emt 0:00:01]} 24. Qxb7+ {[%emt 0:00:10]} Kf8 {[%emt 0:00:02]} 25. Nb3 {[%emt 0:01:23]} Kg7 {[%emt 0:07:47]} 26. Nc5 {[%emt 0:00:28]} Qe8 {[%emt 0:00:02]} 27. Rb1 {[%emt 0:05:21]} Qc8 {[%emt 0:06:08]} 28. Qe7 {[%emt 0:04:42]} Re8 {[%emt 0:01:49]} 29. Qf6+ {[%emt 0:00:26]} Kg8 {[%emt 0:00:05]} 30. Rb7 {[%emt 0:07:08]} Qc6 {[%emt 0:07:13]} 31. Rxf7 {[%emt 0:00:48]} Bxf7 {[%emt 0:03:43]} 32. Qxc6 {[%emt 0:00:07]} Rb8 {[%emt 0:00:51]} 33. h4 {[%emt 0:00:16]} Rb1+ {[%emt 0:00:07]} 34. Kh2 {[%emt 0:00:04]} 1-0

[Event "EYCC Open-U10 2019"]
[Site "Bratislava"]
[Date "2019.08.06"]
[Round "5.14"]
[White "Navoyan, Gagik"]
[Black "Simbelov, Roman T."]
[Result "1-0"]
[ECO "E06"]
[WhiteElo "1670"]
[BlackElo "1560"]
[Annotator "NA"]
[PlyCount "92"]
[EventDate "2019.08.02"]
[EventType "swiss"]
[EventCountry "SVK"]
[SourceTitle "playchess.com"]
[Source "ChessBase"]
[SourceQuality "1"]
[TimeControl "40/5400+30:1800+30"]

1. d4 d5 2. Nf3 Nf6 3. c4 e6 4. g3 Be7 5. Bg2 O-O 6. O-O c6 7. Nc3 Nbd7 8. Qc2 b6 9. e4 Ba6 10. e5 Ne8 11. Nd2 Rc8 12. Rd1 f6 13. cxd5 cxd5 14. Qa4 Nc7 15. exf6 Bxf6 16. Nf3 b5 17. Qa5 Be7 18. Bf4 Nb8 19. Bxc7 Qxc7 20. Qxc7 Rxc7 21. Rac1 b4 22. Nxd5 Rd7 23. Nxe7+ Rxe7 24. Ne5 Rd8 25. f4 Bb5 26. Bf1 Be8 27. Bc4 Nc6 28. Nxc6 Bxc6 29. Kf2 Kf8 30. Ke3 g6 31. h4 Bd5 32. b3 h5 33. Bd3 Kf7 34. Rc5 Rb7 35. Rdc1 Rdd7 36. Rc8 Kg7 37. R1c5 Re7 38. Be4 a6 39. Kf3 Rb6 40. R8c7 Bxe4+ 41. Kxe4 Rxc7 42. Rxc7+ Kf6 43. Rc5 Rb5 44. Rxb5 axb5 45. d5 exd5+ 46. Kxd5 Kf5 1-0

[Event "EYCC Open-U10 2019"]
[Site "Bratislava"]
[Date "2019.08.06"]
[Round "5.15"]
[White "Tolmacevs, Artjoms"]
[Black "Gal, Andrej"]
[Result "0-1"]
[ECO "B33"]
[WhiteElo "1583"]
[BlackElo "1705"]
[Annotator "NA"]
[PlyCount "74"]
[EventDate "2019.08.02"]
[EventType "swiss"]
[EventCountry "SVK"]
[SourceTitle "playchess.com"]
[Source "ChessBase"]
[SourceQuality "1"]
[TimeControl "40/5400+30:1800+30"]

1. e4 c5 2. Nf3 Nc6 3. d4 cxd4 4. Nxd4 Nf6 5. Nc3 e5 6. Ndb5 d6 7. Bg5 a6 8. Na3 b5 9. Nd5 Be7 10. Bxf6 Bxf6 11. c3 O-O 12. Nc2 Bg5 13. a4 bxa4 14. Rxa4 a5 15. h4 Bh6 16. g4 Bf4 17. Bb5 Ne7 18. Nxf4 exf4 19. Qf3 Ng6 20. g5 Ne5 21. Qg2 Bg4 22. Nd4 Rb8 23. O-O Rxb5 24. Nxb5 Qd7 25. f3 Qxb5 26. Rd4 Be6 27. Rxd6 Qc5+ 28. Rd4 Nc6 29. Qf2 Nxd4 30. cxd4 Qb6 31. Ra1 Bb3 32. Kg2 Rc8 33. Qg1 Qe6 34. Rxa5 Rc2+ 35. Kf1 Qh3+ 36. Ke1 Qxh4+ 37. Kf1 Bc4# 0-1

[Event "EYCC Open-U10 2019"]
[Site "Bratislava"]
[Date "2019.08.06"]
[Round "5.16"]
[White "Medhus, Vitus Bondo"]
[Black "Mehtizada, Murad"]
[Result "1-0"]
[ECO "C11"]
[WhiteElo "1704"]
[BlackElo "1516"]
[Annotator "NA"]
[PlyCount "43"]
[EventDate "2019.08.02"]
[EventType "swiss"]
[EventCountry "SVK"]
[SourceTitle "playchess.com"]
[Source "ChessBase"]
[SourceQuality "1"]
[TimeControl "40/5400+30:1800+30"]

1. e4 {[%emt 0:00:00]} e6 {[%emt 0:00:00]} 2. Nf3 {[%emt 0:00:00]} d5 {[%emt 0:00:00]} 3. Nc3 {[%emt 0:00:19]} Nf6 {[%emt 0:00:13]} 4. e5 {[%emt 0:00:19]} Nfd7 {[%emt 0:00:05]} 5. d4 {[%emt 0:00:28]} c5 {[%emt 0:00:11]} 6. dxc5 {[%emt 0:00:46]} Bxc5 {[%emt 0:00:50]} 7. Bd3 {[%emt 0:00:37]} Nc6 {[%emt 0:00:22]} 8. Bf4 {[%emt 0:00:14]} h6 {[%emt 0:00:54]} 9. O-O {[%emt 0:01:10]} O-O {[%emt 0:00:18]} 10. Qd2 {[%emt 0:01:33]} Qe7 {[%emt 0:02:56]} 11. Rae1 {[%emt 0:11:07]} a6 {[%emt 0:11:11]} 12. a3 {[%emt 0:06:10]} b5 {[%emt 0:01:33]} 13. b4 {[%emt 0:03:23]} Bb6 {[%emt 0:00:50]} 14. Ne2 {[%emt 0:03:54]} Bb7 {[%emt 0:08:21]} 15. c3 {[%emt 0:02:39]} Rad8 {[%emt 0:10:39]} 16. Bc2 {[%emt 0:09:13]} Rfe8 {[%emt 0:04:40]} 17. Ng3 {[%emt 0:05:27]} Nf8 {[%emt 0:04:06]} 18. Nh5 {[%emt 0:06:50]} Nd7 {[%emt 0:18:20]} 19. Bxh6 {[%emt 0:11:01]} gxh6 {[%emt 0:00:18]} 20. Qxh6 {[%emt 0:00:12]} f5 {[%emt 0:01:58]} 21. exf6 {[%emt 0:00:10]} Qf7 {[%emt 0:00:13]} 22. Bg6 {[%emt 0:00:12]} 1-0